fUSD/lending_fUSD_20240318
["ID","MTS","AMOUNT","RATE_DAILY","PERIOD"]
[319434855,1710736322522,-616.04,0.00032876,4]
[319434856,1710736322536,-661.6,0.00032876,4]
[319434857,1710736322550,-807.78,0.00032876,4]
[319434858,1710736322564,-576.56,0.00032876,4]
[319434859,1710736322578,-500.0,0.00032876,4]
[319434860,1710736322593,-500.0,0.00032876,4]
[319434861,1710736322607,-1258.08,0.00032876,4]
[319434862,1710736322622,-500.0,0.00032876,4]
[319434863,1710736322636,-922.75,0.00032876,4]
[319434864,1710736322651,-500.0,0.00032876,4]
[319434865,1710736322664,-500.0,0.00032876,4]
[319434866,1710736322679,-1859.01,0.00032876,4]
[319434867,1710736322693,-998.14,0.00032876,4]
[319434868,1710736322708,-712.78,0.00032876,4]
[319434869,1710736322722,-3134.02,0.00032876,4]
[319434870,1710736322735,-720.74,0.00032876,4]
[319434871,1710736322749,-835.55,0.00032876,4]
[319434872,1710736322766,-794.41,0.00032876,4]
[319434873,1710736322781,-3743.94,0.00032876,4]
[319434874,1710736322795,-500.0,0.00032876,4]
[319434875,1710736322809,-642.05,0.00032876,4]
[319434876,1710736322825,-1113.65,0.00032876,4]
[319434877,1710736322839,-589.6,0.00032876,4]
[319434878,1710736322855,-500.0,0.00032876,4]
[319434879,1710736322870,-500.0,0.00032876,4]
[319434880,1710736322886,-633.04,0.00032876,4]
[319434881,1710736322900,-512.73,0.00032876,4]
[319434882,1710736322915,-774.64,0.00032876,4]
[319434883,1710736322930,-1524.04,0.00032876,4]
[319434884,1710736322944,-1898.65,0.00032876,4]
[319434885,1710736322958,-500.0,0.00032876,4]
[319434886,1710736322973,-1586.83,0.00032876,4]
[319434887,1710736322988,-500.0,0.00032876,4]
[319434888,1710736323004,-500.0,0.00032876,4]
[319434889,1710736323023,-833.34,0.00032876,4]
[319434890,1710736323037,-1329.2,0.00032876,4]
[319434891,1710736323052,-500.0,0.00032876,4]
[319434892,1710736323068,-501.93,0.00032876,4]
[319434893,1710736323084,-574.74,0.00032876,4]
[319434894,1710736323099,-500.0,0.00032876,4]
[319434895,1710736323113,-500.0,0.00032876,4]
[319434896,1710736323129,-899.79,0.00032876,4]
[319434897,1710736323144,-500.0,0.00032876,4]
[319434898,1710736323158,-836.63,0.00032876,4]
[319434899,1710736323172,-663.74,0.00032876,4]
[319434900,1710736323186,-1143.03,0.00032876,4]
[319434901,1710736323200,-500.0,0.00032876,4]
[319434902,1710736323214,-1917.2,0.00032876,4]
[319434903,1710736323229,-1716.33,0.00032876,4]
[319434904,1710736323242,-1304.54,0.00032876,4]
[319434905,1710736323255,-500.0,0.00032876,4]
[319434906,1710736323271,-705.47,0.00032876,4]
[319434907,1710736323285,-317.9081176,0.00032876,4]
[319434908,1710736323299,-794.56,0.00032876,4]
[319434909,1710736323312,-500.0,0.00032876,4]
[319434910,1710736323326,-560.65,0.00032876,4]
[319434911,1710736323340,-588.98,0.00032876,4]
[319434912,1710736323355,-2333.6,0.00032876,4]
[319434913,1710736323369,-1061.17,0.00032876,4]
[319434914,1710736323383,-758.7,0.00032876,4]
[319434915,1710736323398,-500.0,0.00032876,4]
[319434916,1710736323412,-538.67251764,0.00032876,4]
[319434917,1710736323425,-1095.12,0.00032876,4]
[319434918,1710736323438,-500.0,0.00032876,4]
[319434919,1710736323452,-2145.95,0.00032876,4]
[319434920,1710736323465,-1627.27,0.00032876,4]
[319434921,1710736323478,-500.0,0.00032876,4]
[319434922,1710736323492,-500.0,0.00032876,4]
[319434923,1710736323505,-151.0,0.00032876,7]
[319434924,1710736323518,-500.0,0.00032876,4]
[319434925,1710736323534,-2012.26,0.00032876,4]
[319434926,1710736323547,-1352.76,0.00032876,4]
[319434927,1710736323561,-500.0,0.00032876,2]
[319434928,1710736323575,-537.95,0.00032876,4]
[319434929,1710736323589,-500.0,0.00032876,4]
[319434930,1710736323604,-2747.25,0.00032876,4]
[319434931,1710736323617,-606.33,0.00032876,4]
[319434932,1710736323631,-175.82310125,0.00032876,4]
[319434933,1710736323649,-500.0,0.00032876,4]
[319434934,1710736323662,-500.0,0.00032876,4]
[319434935,1710736323675,-500.0,0.00032876,4]
[319434936,1710736323689,-154.830592,0.00032876,7]
[319434937,1710736323702,-154.830592,0.00032876,7]
[319434938,1710736323715,-500.0,0.00032876,4]
[319434939,1710736323730,-554.01,0.00032876,4]
[319434940,1710736323746,-807.58,0.00032876,4]
[319434941,1710736323759,-2956.82,0.00032876,4]
[319434942,1710736323774,-500.0,0.00032876,4]
[319434943,1710736324109,-500.0,0.00032876,4]
[319434944,1710736324120,-500.0,0.00032876,4]
[319434945,1710736324130,-1607.18,0.00032876,4]
[319434946,1710736324139,-174.17123,0.00032876,7]
[319434947,1710736324149,-500.0,0.00032876,4]
[319434948,1710736324158,-1221.54,0.00032876,4]
[319434949,1710736324167,-552.22764026,0.00032876,4]
[319434950,1710736324176,-174.17123,0.00032876,7]
[319434951,1710736324186,-1838.23,0.00032876,4]
[319434952,1710736324195,-1026.01,0.00032876,4]
[319434953,1710736324204,-842.1,0.00032876,4]
[319434954,1710736324214,-151.0,0.00032876,7]
[319434955,1710736324223,-151.0,0.00032876,7]
[319434956,1710736324232,-512.31,0.00032876,4]
[319434957,1710736324242,-500.0,0.00032876,4]
[319434958,1710736324251,-831.26,0.00032876,4]
[319434959,1710736324260,-1448.23,0.00032876,4]
[319434960,1710736324270,-1157.32,0.00032876,4]
[319434961,1710736324280,-556.38,0.00032876,4]
[319434962,1710736324289,-500.0,0.00032876,4]
[319434963,1710736324299,-527.52512832,0.00032876,4]
[319434964,1710736324309,-1287.24,0.00032876,4]
[319434965,1710736324318,-500.0,0.00032876,4]
[319434966,1710736324327,-1436.69,0.00032876,4]
[319434967,1710736324337,-1335.54,0.00032876,4]
[319434968,1710736324347,-500.0,0.00032876,4]
[319434969,1710736324357,-1968.76,0.00032876,4]
[319434970,1710736324367,-799.94,0.00032876,4]
[319434971,1710736324376,-1597.09,0.00032876,4]
[319434972,1710736324386,-500.0,0.00032876,4]
[319434973,1710736324395,-500.0,0.00032876,4]
[319434974,1710736324406,-500.0,0.00032876,4]
[319434975,1710736324415,-632.08,0.00032876,4]
[319434976,1710736324425,-681.46,0.00032876,4]
[319434977,1710736324434,-1138.91,0.00032876,4]
[319434978,1710736324443,-1427.1,0.00032876,4]
[319434979,1710736324453,-809.76,0.00032876,4]
[319434980,1710736324462,-500.0,0.00032876,4]
[319434981,1710736324471,-1158.58,0.00032876,2]
[319434982,1710736324481,-1158.58,0.00032876,2]
[319434983,1710736324490,-1158.58,0.00032876,2]
[319434984,1710736324500,-1158.58,0.00032876,2]
[319434985,1710736324510,-1158.58,0.00032876,2]
[319434986,1710736324520,-1158.58,0.00032876,2]
[319434987,1710736324530,-1158.58,0.00032876,2]
[319434988,1710736324539,-1229.86,0.00032876,4]
[319434989,1710736324549,-1158.58,0.00032876,2]
[319434990,1710736324559,-1158.58,0.00032876,2]
[319434991,1710736324569,-1158.58,0.00032876,2]
[319434992,1710736324579,-1158.58,0.00032876,2]
[319434993,1710736324589,-1158.58,0.00032876,2]
[319434994,1710736324598,-1158.58,0.00032876,2]
[319434995,1710736324608,-1158.58,0.00032876,2]
[319434996,1710736324617,-1158.58,0.00032876,2]
[319434997,1710736324626,-1158.58,0.00032876,2]
[319434998,1710736324636,-1158.58,0.00032876,2]
[319434999,1710736324645,-1158.58,0.00032876,2]
[319435000,1710736324655,-1158.58,0.00032876,2]
[319435001,1710736324665,-1158.58,0.00032876,2]
[319435002,1710736324674,-500.0,0.00032876,4]
[319435003,1710736324683,-691.68,0.00032876,4]
[319435004,1710736324693,-1158.58,0.00032876,2]
[319435005,1710736324702,-2635.68,0.00032876,4]
[319435006,1710736324712,-500.0,0.00032876,4]
[319435007,1710736324722,-500.0,0.00032876,4]
[319435008,1710736324731,-1158.58,0.00032876,2]
[319435009,1710736324742,-1158.58,0.00032876,2]
[319435010,1710736324752,-1158.59687419,0.00032876,2]
[319435011,1710736324764,-500.0,0.00032876,4]
[319435012,1710736324774,-788.73,0.00032876,4]
[319435013,1710736324783,-500.0,0.00032876,4]
[319435014,1710736324793,-500.0,0.00032876,4]
[319435015,1710736324803,-2115.38,0.00032876,4]
[319435016,1710736324813,-500.0,0.00032876,4]
[319435017,1710736324822,-1520.72,0.00032876,4]
[319435018,1710736324832,-1607.09,0.00032876,4]
[319435019,1710736324843,-500.0,0.00032876,4]
[319435020,1710736324852,-500.0,0.00032876,4]
[319435021,1710736324862,-1832.55,0.00032876,4]
[319435022,1710736324872,-500.0,0.00032876,4]
[319435023,1710736324883,-824.57,0.00032876,4]
[319435024,1710736324893,-1581.71,0.00032876,4]
[319435025,1710736324903,-583.42,0.00032876,4]
[319435026,1710736324913,-173.354016,0.00032876,7]
[319435027,1710736324922,-1212.73,0.00032876,4]
[319435028,1710736324931,-1404.3,0.00032876,4]
[319435029,1710736324941,-24025.87,0.00032876,4]
[319435030,1710736324951,-500.0,0.00032876,4]
[319435031,1710736324961,-2851.25,0.00032876,4]
[319435032,1710736324970,-2546.72,0.00032876,4]
[319435033,1710736324980,-2287.3,0.00032876,4]
[319435034,1710736324990,-500.0,0.00032876,4]
[319435035,1710736325000,-500.0,0.00032876,4]
[319435036,1710736325009,-647.58,0.00032876,4]
[319435037,1710736325020,-585.33,0.00032876,4]
[319435038,1710736325030,-1053.54,0.00032876,4]
[319435039,1710736325040,-500.0,0.00032876,4]
[319435040,1710736325050,-1503.64,0.00032876,4]
[319435041,1710736325060,-1183.08,0.00032876,4]
[319435042,1710736325070,-500.0,0.00032876,4]
[319435043,1710736325079,-500.0,0.00032876,4]
[319435044,1710736325088,-2122.6,0.00032876,4]
[319435045,1710736325098,-554.14,0.00032876,4]
[319435046,1710736325109,-500.0,0.00032876,4]
[319435047,1710736325119,-513.85,0.00032876,4]
[319435048,1710736325129,-1088.26,0.00032876,4]
[319435049,1710736325140,-1355.29,0.00032876,4]
[319435050,1710736325149,-1081.54,0.00032876,4]
[319435051,1710736325159,-602.31,0.00032876,4]
[319435052,1710736325169,-500.0,0.00032876,4]
[319435053,1710736325179,-16800.01,0.00032876,4]
[319435054,1710736325189,-500.0,0.00032876,4]
[319435055,1710736325199,-732.67,0.00032876,4]
[319435056,1710736325208,-500.0,0.00032876,4]
[319435057,1710736325218,-500.0,0.00032876,4]
[319435058,1710736325229,-500.0,0.00032876,4]
[319435059,1710736325239,-742.96,0.00032876,4]
[319435060,1710736325248,-875.28,0.00032876,4]
[319435061,1710736325258,-500.0,0.00032876,4]
[319435062,1710736325269,-500.0,0.00032876,4]
[319435063,1710736325279,-1382.05,0.00032876,4]
[319435064,1710736325289,-298.66761209,0.00032876,4]
[319435065,1710736325299,-9617.26,0.00032876,4]
[319435066,1710736325309,-632.75,0.00032876,4]
[319435067,1710736325318,-523.3,0.00032876,4]
[319435068,1710736325328,-500.0,0.00032876,4]
[319435069,1710736325338,-500.0,0.00032876,4]
[319435070,1710736325348,-9955.07,0.00032876,4]
[319435071,1710736325357,-1242.28,0.00032876,4]
[319435072,1710736325367,-500.0,0.00032876,4]
[319435073,1710736325376,-815.39,0.00032876,4]
[319435074,1710736325386,-606.68,0.00032876,4]
[319435075,1710736325395,-2827.35,0.00032876,4]
[319435076,1710736325404,-500.0,0.00032876,4]
[319435077,1710736325414,-584.4,0.00032876,4]
[319435078,1710736325423,-500.0,0.00032876,4]
[319435079,1710736325433,-500.0,0.00032876,4]
[319435080,1710736325443,-2844.9,0.00032876,4]
[319435081,1710736325452,-500.0,0.00032876,4]
[319435082,1710736325463,-918.65,0.00032876,4]
[319435083,1710736325472,-2329.09,0.00032876,4]
[319435084,1710736325481,-2657.41,0.00032876,4]
[319435085,1710736325493,-500.0,0.00032876,4]
[319435086,1710736325502,-5715.22,0.00032876,4]
[319435087,1710736325512,-1178.39,0.00032876,4]
[319435088,1710736325523,-192.55828476,0.00032876,4]
[319435089,1710736325532,-500.0,0.00032876,4]
[319435090,1710736325541,-500.0,0.00032876,4]
[319435091,1710736325551,-1030.3,0.00032876,4]
[319435092,1710736325560,-7010.64,0.00032876,4]
[319435093,1710736325570,-500.0,0.00032876,4]
[319435094,1710736325579,-795.31,0.00032876,4]
[319435095,1710736325589,-500.0,0.00032876,4]
[319435096,1710736325600,-647.9,0.00032876,4]
[319435097,1710736325610,-756.1,0.00032876,4]
[319435098,1710736325619,-500.0,0.00032876,4]
[319435099,1710736325629,-205.51697882,0.00032876,4]
[319435100,1710736325638,-500.0,0.00032876,4]
[319435101,1710736325648,-1213.71,0.00032876,4]
[319435102,1710736325658,-3112.49,0.00032876,4]
[319435103,1710736325668,-16099.23,0.00032876,4]
[319435104,1710736325678,-1067.48,0.00032876,4]
[319435105,1710736325687,-1085.99,0.00032876,4]
[319435106,1710736325697,-500.0,0.00032876,4]
[319435107,1710736325707,-500.0,0.00032876,4]
[319435108,1710736325716,-7279.53,0.00032876,4]
[319435109,1710736325726,-500.0,0.00032876,4]
[319435110,1710736325735,-3639.26,0.00032876,4]
[319435111,1710736325748,-4937.08,0.00032876,4]
[319435112,1710736325757,-14656.9,0.00032876,4]
[319435113,1710736325767,-500.0,0.00032876,4]
[319435114,1710736325780,-1119.07,0.00032876,4]
[319435115,1710736325790,-634.23562026,0.00032876,4]
[319435116,1710736325799,-500.0,0.00032876,4]
[319435117,1710736325809,-714.97,0.00032876,4]
[319435118,1710736325819,-500.0,0.00032876,4]
[319435119,1710736325829,-3778.15,0.00032876,4]
[319435120,1710736325840,-2442.22,0.00032876,4]
[319435121,1710736325850,-915.55,0.00032876,4]
[319435122,1710736325859,-500.0,0.00032876,4]
[319435123,1710736325868,-500.0,0.00032876,4]
[319435124,1710736325878,-2039.35,0.00032876,4]
[319435125,1710736325887,-1590.31,0.00032876,4]
[319435126,1710736325896,-500.0,0.00032876,2]
[319435127,1710736325906,-426.00436592,0.00032876,4]
[319435128,1710736325916,-2078.76,0.00032876,4]
[319435129,1710736325926,-765.76,0.00032876,4]
[319435130,1710736325936,-2024.35,0.00032876,4]
[319435131,1710736325945,-500.0,0.00032876,4]
[319435132,1710736325955,-3546.12,0.00032876,4]
[319435133,1710736325964,-1026.0,0.00032876,5]
[319435134,1710736325974,-2224.42,0.00032877,10]
[319435135,1710736325983,-37446.85,0.00032877,2]
[319435136,1710736325994,-55797.91,0.00032877,2]
[319435137,1710736326003,-319.71,0.00032877,2]
[319435138,1710736326013,-500.0,0.00032877,7]
[319435139,1710736326023,-520.37128493,0.00032877,7]
[319435140,1710736326033,-150.0,0.00032877,30]
[319435141,1710736326042,-150.0,0.00032877,30]
[319435142,1710736326051,-150.0,0.00032877,30]
[319435143,1710736326061,-150.0,0.00032877,30]
[319435144,1710736326071,-150.0,0.00032877,30]
[319435145,1710736326080,-150.0,0.00032877,30]
[319435146,1710736326092,-150.0,0.00032877,30]
[319435147,1710736326102,-150.0,0.00032877,30]
[319435148,1710736326111,-196.78441449,0.00032877,30]
[319435149,1710736326121,-150.0,0.00032877,2]
[319435150,1710736326130,-155.0,0.00032878,2]
[319435151,1710736326140,-15070.65052168,0.0003288,21]
[319435152,1710736326150,-1000.0,0.000329,7]
[319435153,1710736326160,-146885.60994746,0.000329,5]
[319435154,1710736326169,-238126.78814864,0.000329,5]
[319435155,1710736326179,-10658.03710537,0.000329,30]
[319435156,1710736326188,-1163.80161531,0.000329,120]
[319435157,1710736326198,-125611.56379347,0.000329,30]
[319435158,1710736326208,-16248.55948963,0.000329,30]
[319435159,1710736326217,-150.0,0.000329,2]
[319435160,1710736326227,-6432.0,0.000329,2]
[319435161,1710736326237,-7814.0,0.000329,2]
[319435162,1710736326247,-812.0,0.000329,2]
[319435163,1710736326256,-2000.0,0.000329,2]
[319435164,1710736326265,-1001.0,0.000329,2]
[319435165,1710736326277,-317.76,0.0003294,2]
[319435166,1710736326286,-2000.0,0.00032973,2]
[319435167,1710736326296,-150.0,0.00032987,7]
[319435168,1710736326305,-1000.0,0.00032999,4]
[319435169,1710736326314,-1000.0,0.00032999,6]
[319435170,1710736326324,-1000.0,0.00032999,5]
[319435171,1710736326333,-9382.8242065,0.00032999,5]
[319435172,1710736326342,-200000.0,0.00033,23]
[319435173,1710736326352,-200000.0,0.00033,33]
[319435174,1710736326360,-9075.06902226,0.00033,2]
[319435175,1710736326370,-968.34104343,0.00033,2]
[319435176,1710736326380,-60000.0,0.00033,15]
[319435177,1710736326390,-166902.33256799,0.00033,2]
[319435178,1710736326399,-14967.83724009,0.00033,2]
[319435179,1710736326408,-166730.5962363,0.00033,2]
[319435180,1710736326418,-24212.23723366,0.00033,2]
[319435181,1710736326427,-198.16,0.00033,10]
[319435182,1710736326436,-5052.65612485,0.00033,2]
[319435183,1710736326446,-1200.0,0.00033,34]
[319435184,1710736326454,-12697.41,0.00033,120]
[319435185,1710736326463,-200.59847064,0.00033,120]
[319435186,1710736326473,-1000.0,0.00033,120]
[319435187,1710736326482,-6282.93361602,0.00033,120]
[319435188,1710736326490,-15999.999999,0.00033,2]
[319435189,1710736326500,-300.0,0.00033,33]
[319435190,1710736326509,-3000.0,0.00033,3]
[319435191,1710736326518,-1158.13,0.00033,8]
[319435192,1710736326529,-2100.0,0.00033,2]
[319435193,1710736326538,-285.55,0.00033,6]
[319435194,1710736326547,-156.0,0.00033,5]
[319435195,1710736326556,-500.09,0.00033,10]
[319435196,1710736326565,-118171.57381443,0.00033,30]
[319435197,1710736326575,-1200.0,0.00033,3]
[319435198,1710736326585,-205.0,0.00033,2]
[319435199,1710736326595,-150.0,0.00033059,3]
[319435200,1710736326605,-150.0,0.00033098,7]
[319435201,1710736326615,-812.0,0.000331,22]
[319435202,1710736326625,-8365.87,0.000331,2]
[319435203,1710736326634,-8365.87,0.000331,2]
[319435204,1710736326644,-8365.87,0.000331,2]
[319435205,1710736326654,-8365.87,0.000331,2]
[319435206,1710736326663,-8365.87,0.000331,2]
[319435207,1710736326673,-8365.87,0.000331,2]
[319435208,1710736326682,-8365.87,0.000331,2]
[319435209,1710736326692,-8365.87,0.000331,2]
[319435210,1710736326702,-8365.87,0.000331,2]
[319435211,1710736326712,-8365.87,0.000331,2]
[319435212,1710736326722,-8365.87,0.000331,2]
[319435213,1710736326731,-8365.87,0.000331,2]
[319435214,1710736326742,-8365.87,0.000331,2]
[319435215,1710736326752,-8365.87,0.000331,2]
[319435216,1710736326764,-8365.87,0.000331,2]
[319435217,1710736326774,-8365.87,0.000331,2]
[319435218,1710736326783,-8365.87,0.000331,2]
[319435219,1710736326792,-8365.87,0.000331,2]
[319435220,1710736326802,-8365.87,0.000331,2]
[319435221,1710736326812,-8365.87,0.000331,2]
[319435222,1710736326821,-156.19687462,0.00033123,30]
[319435223,1710736326832,-1000.0,0.00033149,2]
[319435224,1710736326841,-150.0,0.0003315,7]
[319435225,1710736326853,-498.08622796,0.0003315,4]
[319435226,1710736326862,-500.0,0.0003315,4]
[319435227,1710736326871,-500.0,0.0003315,4]
[319435228,1710736327045,-500.0,0.0003315,4]
[319435229,1710736327054,-500.0,0.0003315,4]
[319435230,1710736327063,-500.0,0.0003315,4]
[319435231,1710736327072,-500.0,0.0003315,4]
[319435232,1710736327082,-500.0,0.0003315,4]
[319435233,1710736327091,-500.0,0.0003315,4]
[319435234,1710736327101,-500.0,0.0003315,4]
[319435235,1710736327111,-500.0,0.0003315,4]
[319435236,1710736327120,-500.0,0.0003315,4]
[319435237,1710736327129,-892.35,0.0003315,4]
[319435238,1710736327139,-588.99,0.0003315,4]
[319435239,1710736327148,-500.0,0.0003315,4]
[319435240,1710736327157,-500.0,0.0003315,4]
[319435241,1710736327166,-500.0,0.0003315,4]
[319435242,1710736327175,-500.0,0.0003315,4]
[319435243,1710736327185,-500.0,0.0003315,4]
[319435244,1710736327194,-500.0,0.0003315,4]
[319435245,1710736327203,-500.0,0.0003315,4]
[319435246,1710736327212,-752.67,0.0003315,4]
[319435247,1710736327221,-500.0,0.0003315,4]
[319435248,1710736327230,-500.0,0.0003315,4]
[319435249,1710736327239,-490.22645505,0.0003315,4]
[319435250,1710736327248,-620.77572322,0.0003315,4]
[319435251,1710736327257,-500.0,0.0003315,4]
[319435252,1710736327267,-500.0,0.0003315,4]
[319435253,1710736327277,-500.0,0.0003315,4]
[319435254,1710736327286,-500.0,0.0003315,4]
[319435255,1710736327295,-500.0,0.0003315,4]
[319435256,1710736327305,-869.9,0.0003315,4]
[319435257,1710736327314,-500.0,0.0003315,4]
[319435258,1710736327323,-1373.45,0.0003315,4]
[319435259,1710736327332,-536.23,0.0003315,4]
[319435260,1710736327341,-174.01769381,0.0003315,4]
[319435261,1710736327351,-1105.28,0.0003315,4]
[319435262,1710736327360,-500.0,0.0003315,4]
[319435263,1710736327369,-500.0,0.0003315,4]
[319435264,1710736327378,-500.0,0.0003315,4]
[319435265,1710736327387,-500.0,0.0003315,4]
[319435266,1710736327397,-500.0,0.0003315,4]
[319435267,1710736327406,-622.18,0.0003315,4]
[319435268,1710736327415,-500.0,0.0003315,4]
[319435269,1710736327425,-500.0,0.0003315,4]
[319435270,1710736327434,-500.0,0.0003315,4]
[319435271,1710736327443,-500.0,0.0003315,4]
[319435272,1710736327453,-500.0,0.0003315,4]
[319435273,1710736327462,-501.4,0.0003315,4]
[319435274,1710736327471,-2231.25,0.0003315,4]
[319435275,1710736327480,-500.0,0.0003315,4]
[319435276,1710736327489,-500.0,0.0003315,4]
[319435277,1710736327498,-735.9,0.0003315,4]
[319435278,1710736327507,-500.0,0.0003315,4]
[319435279,1710736327517,-500.0,0.0003315,4]
[319435280,1710736327527,-500.0,0.0003315,4]
[319435281,1710736327536,-500.0,0.0003315,4]
[319435282,1710736327545,-500.0,0.0003315,4]
[319435283,1710736327555,-943.04,0.0003315,4]
[319435284,1710736327564,-227.80900419,0.0003315,4]
[319435285,1710736327574,-500.0,0.0003315,4]
[319435286,1710736327583,-388.98336805,0.0003315,4]
[319435287,1710736327592,-500.0,0.0003315,4]
[319435288,1710736327601,-503.91,0.0003315,4]
[319435289,1710736327610,-500.0,0.0003315,4]
[319435290,1710736327619,-500.0,0.0003315,4]
[319435291,1710736327629,-1566.14,0.0003315,4]
[319435292,1710736327638,-500.0,0.0003315,4]
[319435293,1710736327647,-507.78,0.0003315,4]
[319435294,1710736327656,-500.0,0.0003315,4]
[319435295,1710736327665,-500.0,0.0003315,4]
[319435296,1710736327674,-500.0,0.0003315,4]
[319435297,1710736327683,-832.17,0.0003315,4]
[319435298,1710736327692,-500.0,0.0003315,4]
[319435299,1710736327701,-450.70560313,0.0003315,4]
[319435300,1710736327710,-500.0,0.0003315,4]
[319435301,1710736327719,-1123.76,0.0003315,4]
[319435302,1710736327729,-600.34,0.0003315,4]
[319435303,1710736327737,-710.22,0.0003315,4]
[319435304,1710736327748,-500.0,0.0003315,4]
[319435305,1710736327758,-500.0,0.0003315,4]
[319435306,1710736327767,-1438.95,0.0003315,4]
[319435307,1710736327778,-1027.19,0.0003315,4]
[319435308,1710736327788,-500.0,0.0003315,4]
[319435309,1710736327798,-500.0,0.0003315,4]
[319435310,1710736327807,-624.55,0.0003315,4]
[319435311,1710736327817,-363.1505761,0.0003315,4]
[319435312,1710736327826,-595.77,0.0003315,4]
[319435313,1710736327836,-1826.25,0.0003315,4]
[319435314,1710736327846,-500.0,0.0003315,4]
[319435315,1710736327856,-931.82,0.0003315,4]
[319435316,1710736327865,-2156.89,0.0003315,4]
[319435317,1710736327875,-626.3,0.0003315,4]
[319435318,1710736327884,-500.0,0.0003315,4]
[319435319,1710736327893,-2005.2,0.0003315,4]
[319435320,1710736327902,-500.0,0.0003315,4]
[319435321,1710736327911,-500.0,0.0003315,4]
[319435322,1710736327920,-2463.3,0.0003315,4]
[319435323,1710736327929,-500.0,0.0003315,4]
[319435324,1710736327938,-500.0,0.0003315,4]
[319435325,1710736327948,-500.0,0.0003315,4]
[319435326,1710736327957,-2094.29,0.0003315,4]
[319435327,1710736327966,-911.56,0.0003315,4]
[319435328,1710736327976,-500.0,0.0003315,4]
[319435329,1710736327985,-2639.58,0.0003315,4]
[319435330,1710736327994,-500.0,0.0003315,4]
[319435331,1710736328004,-277.77620105,0.0003315,4]
[319435332,1710736328013,-500.0,0.0003315,4]
[319435333,1710736328022,-3465.75,0.0003315,4]
[319435334,1710736328033,-523.09,0.0003315,4]
[319435335,1710736328042,-500.0,0.0003315,4]
[319435336,1710736328051,-500.0,0.0003315,4]
[319435337,1710736328061,-1239.79,0.0003315,4]
[319435338,1710736328070,-500.0,0.0003315,4]
[319435339,1710736328079,-3439.16,0.0003315,4]
[319435340,1710736328088,-865.02,0.0003315,4]
[319435341,1710736328098,-770.0,0.0003315,4]
[319435342,1710736328107,-500.0,0.0003315,4]
[319435343,1710736328116,-1050.75,0.0003315,4]
[319435344,1710736328125,-639.93,0.0003315,4]
[319435345,1710736328134,-3922.62,0.0003315,4]
[319435346,1710736328144,-953.43,0.0003315,4]
[319435347,1710736328153,-611.87,0.0003315,4]
[319435348,1710736328163,-500.0,0.0003315,4]
[319435349,1710736328173,-798.65,0.0003315,4]
[319435350,1710736328182,-2710.57,0.0003315,4]
[319435351,1710736328191,-500.0,0.0003315,4]
[319435352,1710736328200,-2948.74,0.0003315,4]
[319435353,1710736328209,-500.0,0.0003315,4]
[319435354,1710736328218,-539.71,0.0003315,4]